bitfinex/quotes_BTCUSD_20241001
["timestamp","ask_amount","ask_price","bid_price","bid_amount"]
[1727814724536,0.003284,60950.0,60935.0,0.1564578]
[1727814724756,0.328166,60945.0,60936.0,0.00116591]
[1727814725197,0.24597624,60948.0,60936.0,0.24714215]
[1727814725418,0.164085,60944.0,60935.0,0.1564578]
[1727814725631,0.16409,60942.0,60936.0,0.00328175]
[1727814726109,0.02571212,60948.0,60941.0,0.24597624]
[1727814726345,0.02571212,60948.0,60936.0,0.00328175]
[1727814726346,0.24597624,60957.0,60947.0,0.54257802]
[1727814726554,0.24597624,60957.0,60949.0,0.328143]
[1727814726769,0.24597624,60957.0,60950.0,0.1564578]
[1727814727192,0.164059,60954.0,60950.0,0.1564578]
[1727814727433,0.164064,60952.0,60941.0,0.164092]
[1727814727647,0.164056,60955.0,60944.0,0.1564578]
[1727814727854,0.164065,60952.0,60944.0,0.1564578]
[1727814728066,0.164063,60952.0,60944.0,0.1564578]
[1727814728271,0.328091,60959.0,60944.0,0.1564578]
[1727814728479,0.24597624,60956.0,60944.0,0.1564578]
[1727814728695,0.164058,60954.0,60944.0,0.3205398]
[1727814728907,0.24597624,60956.0,60945.0,0.164081]
[1727814728908,0.164056,60955.0,60945.0,0.164081]
[1727814729117,0.164056,60955.0,60946.0,0.1564578]
[1727814729118,0.328111,60955.0,60946.0,0.1564578]
[1727814729328,0.16408,60946.0,60937.0,0.1]
[1727814729533,0.16408,60946.0,60942.0,0.24597624]
[1727814729746,0.328139,60950.0,60943.0,0.1564578]
[1727814729996,0.24597624,60956.0,60943.0,0.1564578]
[1727814729997,0.164077,60947.0,60943.0,0.1564578]
[1727814730443,0.164093,60941.0,60936.0,0.24597624]
[1727814730661,0.164097,60940.0,60937.0,0.1564578]
[1727814730868,0.164089,60943.0,60937.0,0.1564578]
[1727814731077,0.24597624,60947.0,60937.0,0.1564578]
[1727814731325,0.164088,60943.0,60937.0,0.1564578]
[1727814731546,0.164097,60940.0,60937.0,0.1564578]
[1727814731763,0.328185,60942.0,60931.0,0.428239]
[1727814731978,0.328031,60970.0,60931.0,0.428239]
[1727814731979,0.24597624,60957.0,60941.0,0.44257802]
[1727814732205,0.24597624,60945.0,60944.0,0.164085]
[1727814732411,0.57407624,60957.0,60944.0,0.164085]
[1727814732412,0.164074,60949.0,60944.0,0.1564578]
[1727814732614,0.164074,60949.0,60945.0,0.1564578]
[1727814732850,0.328117,60954.0,60945.0,0.4846218]
[1727814733065,0.164073,60949.0,60945.0,0.1564578]
[1727814733284,0.24597624,60957.0,60945.0,0.1564578]
[1727814733709,0.164048,60958.0,60952.0,0.164062]
[1727814733965,0.164048,60958.0,60953.0,0.16406]
[1727814734168,0.164053,60956.0,60951.0,0.16620001]
[1727814734378,0.164053,60956.0,60951.0,0.3205228]
[1727814734586,0.328079,60961.0,60952.0,0.328125]
[1727814734797,0.328079,60961.0,60951.0,0.1564578]
[1727814734798,0.24597624,60957.0,60951.0,0.1564578]
[1727814735003,0.328094,60959.0,60951.0,0.3205218]
[1727814735225,0.164054,60956.0,60951.0,0.1564578]
[1727814735639,0.163454,60956.0,60952.0,0.164063]
[1727814735860,0.328107,60956.0,60946.0,0.328156]
[1727814736066,0.328129,60952.0,60948.0,0.24597624]
[1727814736248,0.163967,60951.0,60948.0,0.24597624]
[1727814736462,0.163967,60951.0,60947.0,0.164075]
[1727814736676,0.163167,60951.0,60947.0,0.164075]
[1727814736892,0.328127,60952.0,60946.0,0.1564578]
[1727814737109,0.164064,60952.0,60949.0,0.164071]
[1727814737329,0.164064,60952.0,60942.0,0.24597624]
[1727814737330,0.328115,60955.0,60946.0,0.328154]
[1727814737556,0.328126,60953.0,60943.0,0.328174]
[1727814737840,0.24597624,60956.0,60942.0,0.24597624]
[1727814737841,0.164063,60952.0,60946.0,0.328154]
[1727814738081,0.328082,60961.0,60953.0,0.164059]
[1727814738082,0.327981,60961.0,60953.0,0.164059]
[1727814738307,0.24597624,60964.0,60951.0,0.164066]
[1727814738308,0.000517,60962.0,60951.0,0.164066]
[1727814738527,0.000517,60962.0,60952.0,0.164063]
[1727814738528,0.164053,60956.0,60952.0,0.164063]
[1727814738949,0.163853,60956.0,60951.0,0.1564578]
[1727814739172,0.163953,60956.0,60951.0,0.1564578]
[1727814739390,0.000517,60962.0,60952.0,0.40243404]
[1727814739612,0.24597624,60961.0,60958.0,0.164045]
[1727814739825,0.000517,60962.0,60957.0,0.164049]
[1727814739826,0.164454,60962.0,60957.0,0.164049]
[1727814740034,0.164454,60962.0,60957.0,0.3205068]
[1727814740240,0.164454,60962.0,60957.0,0.1564578]
[1727814740452,0.000417,60962.0,60957.0,0.1564578]
[1727814740706,0.164047,60958.0,60957.0,0.1564578]
[1727814740952,0.000417,60962.0,60957.0,0.3205048]
[1727814740953,0.164454,60962.0,60957.0,0.3205048]
[1727814741188,0.164454,60962.0,60957.0,0.1564578]
[1727814741189,0.000417,60962.0,60957.0,0.1564578]
[1727814741406,0.164046,60959.0,60957.0,0.1564578]
[1727814741668,0.164046,60959.0,60953.0,0.328117]
[1727814741669,0.328131,60952.0,60940.0,0.44257802]
[1727814741889,0.164066,60951.0,60950.0,0.24597624]
[1727814742095,0.164066,60951.0,60944.0,0.1]
[1727814742307,0.164066,60951.0,60945.0,0.3205378]
[1727814742519,0.164066,60951.0,60946.0,0.164079]
[1727814742737,0.24597624,60953.0,60947.0,0.1564578]
[1727814743176,0.16407,60950.0,60947.0,0.1564578]
[1727814743832,0.24597624,60948.0,60944.0,0.1]
[1727814744057,0.328133,60951.0,60945.0,0.1564578]
[1727814744288,0.328133,60951.0,60941.0,0.24597624]
[1727814744289,0.164087,60943.0,60942.0,0.1]
[1727814744559,0.164087,60943.0,60942.0,0.2564578]
[1727814744802,0.164079,60946.0,60942.0,0.2564578]
[1727814745045,0.328138,60950.0,60943.0,0.1564578]
[1727814745294,0.24597624,60951.0,60939.0,0.001636]
[1727814745643,0.328154,60947.0,60940.0,0.15973924]
[1727814745835,0.164082,60946.0,60940.0,0.15973924]
[1727814746070,0.24597624,60951.0,60940.0,0.15973924]
[1727814746071,0.164066,60951.0,60940.0,0.15973924]
[1727814746323,0.24597624,60972.0,60948.0,0.164073]
[1727814746696,0.24597624,60972.0,60941.0,0.68855426]
[1727814746697,0.24597624,60972.0,60950.0,0.1]
[1727814747131,0.24597624,60972.0,60953.0,0.428117]
[1727814747132,0.24597624,60957.0,60953.0,0.428117]
[1727814747135,0.24597624,60957.0,60953.0,0.1]
[1727814747372,0.000817,60961.0,60953.0,0.1]
[1727814747373,0.000817,60961.0,60960.0,0.264041]
[1727814747644,0.000817,60961.0,60960.0,0.86635713]
[1727814747896,0.000817,60961.0,60960.0,0.4204988]
[1727814748175,0.000817,60961.0,60960.0,0.1564578]
[1727814748735,0.000817,60961.0,60956.0,0.16405]
[1727814748736,0.000817,60961.0,60956.0,0.164051]
[1727814748990,0.000817,60961.0,60955.0,0.1]
[1727814748991,0.000817,60961.0,60957.0,0.1564578]
[1727814749715,0.01677555,60960.0,60957.0,0.1564578]
[1727814749960,0.18081955,60959.0,60952.0,0.164062]
[1727814750179,0.3289,60961.0,60953.0,0.1564578]
[1727814750180,0.164053,60956.0,60953.0,0.1564578]
[1727814750397,0.01677555,60958.0,60953.0,0.1564578]
[1727814750398,0.164048,60958.0,60953.0,0.1564578]
[1727814750623,0.164048,60958.0,60943.0,0.68855426]
[1727814750624,0.26683413,60957.0,60942.0,0.001634]
[1727814750877,0.01672032,60956.0,60951.0,0.24597624]
[1727814751106,0.164082,60945.0,60944.0,0.24597624]
[1727814751318,0.164082,60945.0,60942.0,0.001634]
[1727814751319,0.164083,60945.0,60942.0,0.001634]
[1727814751532,0.328162,60946.0,60942.0,0.001633]
[1727814751754,0.164087,60943.0,60942.0,0.001633]
[1727814751975,0.0167973,60943.0,60942.0,0.001633]
[1727814752435,0.164077,60947.0,60942.0,0.001633]
[1727814752647,0.01679775,60946.0,60942.0,0.001633]
[1727814752864,0.01679775,60945.0,60942.0,0.001633]
[1727814753109,0.01679775,60944.0,60942.0,0.001633]
[1727814753348,0.164078,60947.0,60942.0,0.001633]
[1727814753635,0.164087,60943.0,60942.0,0.001633]
[1727814753858,0.01673515,60943.0,60942.0,0.001633]
[1727814754079,0.01673515,60945.0,60942.0,0.001633]
[1727814754518,0.02571213,60946.0,60942.0,0.001633]
[1727814754519,0.01679855,60944.0,60942.0,0.001633]
[1727814754739,0.18979213,60946.0,60942.0,0.001633]
[1727814754970,0.01666745,60945.0,60942.0,0.001633]
[1727814755183,0.01666745,60945.0,60942.0,0.165723]
[1727814756061,0.01666745,60945.0,60944.0,0.24597624]
[1727814756296,0.02571213,60946.0,60945.0,0.264082]
[1727814756528,0.24597624,60959.0,60958.0,0.164047]
[1727814756745,0.24597624,60959.0,60957.0,0.164048]
[1727814756746,0.26267385,60959.0,60957.0,0.164048]
[1727814756970,0.01669761,60958.0,60956.0,0.328105]
[1727814757190,0.000817,60961.0,60958.0,0.328093]
[1727814757424,0.000817,60961.0,60960.0,0.264041]
[1727814757674,0.000817,60961.0,60960.0,0.66647504]
[1727814757904,0.000817,60961.0,60960.0,0.4763888]
[1727814758135,0.000817,60976.0,60974.0,0.70658202]
[1727814758353,0.000817,60976.0,60974.0,0.86303982]
[1727814758791,0.000817,60976.0,60975.0,0.264001]
[1727814759017,0.000817,60976.0,60975.0,0.4204588]
[1727814759245,0.000817,60976.0,60975.0,0.2564578]
[1727814759468,0.000817,60976.0,60955.0,0.64087802]
[1727814759689,0.000817,60976.0,60971.0,0.164011]
[1727814759690,0.01669468,60975.0,60971.0,0.164011]
[1727814759946,0.000817,60976.0,60968.0,0.328038]
[1727814760160,0.000817,60976.0,60968.0,0.1564578]
[1727814760161,0.328003,60975.0,60968.0,0.1564578]
[1727814760376,0.16401,60972.0,60968.0,0.1564578]
[1727814760594,0.000817,60976.0,60969.0,0.24597624]
[1727814760820,0.000817,60976.0,60968.0,0.1564578]
[1727814761033,0.164007,60973.0,60968.0,0.1564578]
[1727814761298,0.000817,60976.0,60968.0,0.1564578]
[1727814761535,0.328004,60975.0,60968.0,0.1564578]
[1727814761740,0.164011,60972.0,60968.0,0.1564578]
[1727814762376,0.164012,60971.0,60968.0,0.1564578]
[1727814762586,0.0166803,60970.0,60962.0,0.24597624]
[1727814762788,0.000817,60976.0,60963.0,0.1]
[1727814762996,0.328052,60966.0,60954.0,1.01666426]
[1727814763212,0.164051,60957.0,60955.0,0.1564578]
[1727814763435,0.164047,60959.0,60955.0,0.1564578]
[1727814763652,0.16405,60957.0,60955.0,0.1564578]
[1727814763872,0.328095,60958.0,60955.0,0.1564578]
[1727814764105,0.24597624,60970.0,60949.0,0.328138]
[1727814764347,0.328087,60960.0,60951.0,0.164065]
[1727814764571,0.16405,60957.0,60954.0,0.24597624]
[1727814764814,0.16405,60957.0,60952.0,0.1564578]
[1727814765261,0.16405,60957.0,60953.0,0.1]
[1727814765501,0.164052,60956.0,60953.0,0.1564578]
[1727814765749,0.328091,60959.0,60953.0,0.1564578]
[1727814766018,0.164044,60959.0,60954.0,0.164055]
[1727814766324,0.002,60983.0,60954.0,0.164055]
[1727814766325,0.328037,60969.0,60960.0,0.328082]
[1727814766558,0.24597624,60963.0,60961.0,0.1564578]
[1727814766813,0.164024,60967.0,60962.0,0.164035]
[1727814767037,0.328021,60972.0,60964.0,0.16403]
[1727814767304,0.328004,60975.0,60966.0,0.328051]
[1727814767543,0.000817,60976.0,60966.0,0.1564578]
[1727814767544,0.24597624,60969.0,60966.0,0.1564578]
[1727814767752,0.164018,60969.0,60966.0,0.1564578]
[1727814767998,0.328029,60971.0,60966.0,0.1564578]
[1727814768215,0.164021,60968.0,60966.0,0.1564578]
[1727814768704,0.328036,60969.0,60966.0,0.1564578]
[1727814768968,0.164023,60967.0,60966.0,0.1564578]
[1727814772411,0.16484,60967.0,60966.0,0.1564578]
[1727814775546,0.16484,60967.0,60956.0,0.4281]
[1727814775547,0.000817,60967.0,60956.0,0.1]
[1727814775763,0.164041,60960.0,60959.0,0.1564578]
[1727814776204,0.000817,60967.0,60952.0,0.001634]
[1727814776205,0.16406,60953.0,60952.0,0.001634]
[1727814776454,0.164039,60961.0,60957.0,0.24597624]
[1727814776666,0.328868,60967.0,60952.0,0.1580918]
[1727814776667,0.164043,60960.0,60958.0,0.1564578]
[1727814776910,0.57404924,60962.0,60958.0,0.1564578]
[1727814777126,0.328059,60965.0,60958.0,0.1564578]
[1727814777127,0.164034,60963.0,60958.0,0.1564578]
[1727814777343,0.000817,60967.0,60959.0,0.04958622]
[1727814777560,0.000817,60967.0,60960.0,0.1564578]
[1727814777769,0.000817,60967.0,60961.0,0.1]
[1727814777984,0.000817,60967.0,60962.0,0.1564578]
[1727814778420,0.000817,60967.0,60962.0,0.0464578]
[1727814778421,0.164026,60966.0,60962.0,0.0464578]
[1727814778636,0.000817,60967.0,60952.0,0.001634]
[1727814778848,0.164041,60961.0,60958.0,0.24597624]
[1727814779065,0.164041,60961.0,60953.0,0.3205178]
[1727814779066,0.164041,60961.0,60954.0,0.1]
[1727814779276,0.164041,60961.0,60956.0,0.1]
[1727814779502,0.164041,60961.0,60957.0,0.1564578]
[1727814779930,0.328057,60965.0,60957.0,0.1564578]
[1727814779931,0.164037,60962.0,60957.0,0.1564578]
[1727814780191,0.57404924,60962.0,60957.0,0.1564578]
[1727814780381,0.16406,60953.0,60952.0,0.001634]
[1727814780609,0.16406,60953.0,60952.0,0.24761024]
[1727814780865,0.16406,60953.0,60952.0,0.001634]
[1727814781088,0.18519015,60953.0,60952.0,0.001634]
[1727814781307,0.18519323,60953.0,60952.0,0.001634]
[1727814782212,0.0170315,60953.0,60952.0,0.001634]
[1727814782476,0.328079,60961.0,60952.0,0.001634]
[1727814782477,0.04752779,60964.0,60952.0,0.001634]
[1727814782722,0.164045,60959.0,60953.0,0.164058]
[1727814782937,0.328079,60961.0,60953.0,0.2564578]
[1727814783149,0.24597624,60962.0,60952.0,0.001634]
[1727814783150,0.16406,60953.0,60952.0,0.001634]
[1727814783592,0.01673749,60953.0,60952.0,0.001634]
[1727814783803,0.24597624,60960.0,60952.0,0.001634]
[1727814784019,0.02570705,60954.0,60952.0,0.001634]
[1727814784483,0.32807,60963.0,60953.0,0.1564578]
[1727814784721,0.000817,60967.0,60953.0,0.1564578]
[1727814784722,0.164048,60958.0,60953.0,0.1564578]
[1727814784930,0.164047,60958.0,60953.0,0.1564578]
[1727814785148,0.164045,60959.0,60953.0,0.3205168]
[1727814785585,0.164045,60959.0,60953.0,0.1564578]
[1727814785797,0.24597624,60961.0,60953.0,0.1564578]
[1727814786010,0.24597624,60961.0,60952.0,0.001634]
[1727814786011,0.16406,60953.0,60952.0,0.001634]
[1727814786433,0.18075416,60953.0,60952.0,0.001634]
[1727814786874,0.4308319,60953.0,60952.0,0.001634]
[1727814787087,0.18075416,60953.0,60952.0,0.001634]
[1727814787297,0.18485602,60953.0,60952.0,0.001634]
[1727814788175,0.43083226,60953.0,60952.0,0.001634]
[1727814788405,0.43946181,60953.0,60952.0,0.001634]
[1727814788633,0.164087,60943.0,60942.0,0.001633]
[1727814788841,0.18493361,60943.0,60942.0,0.001633]
[1727814789055,0.46446457,60943.0,60942.0,0.001633]
[1727814789277,0.60781785,60943.0,60942.0,0.001633]
[1727814789503,0.1,60942.0,60939.0,0.001636]
[1727814789743,0.264095,60940.0,60939.0,0.001636]
[1727814789952,0.164103,60937.0,60936.0,0.24544944]
[1727814790168,0.164128,60928.0,60927.0,0.24597624]
[1727814790390,0.328245,60931.0,60927.0,0.40243404]
[1727814790391,0.164124,60930.0,60927.0,0.40243404]
[1727814790616,0.164125,60929.0,60927.0,0.1564578]
[1727814791098,0.164123,60930.0,60927.0,0.3205868]
[1727814791316,0.02571823,60932.0,60927.0,0.1564578]
[1727814791317,0.164126,60929.0,60927.0,0.1564578]
[1727814791530,0.02571823,60932.0,60927.0,0.1564578]
[1727814791531,0.164128,60928.0,60927.0,0.1564578]
[1727814792016,0.164125,60929.0,60927.0,0.1564578]
[1727814792243,0.02571823,60932.0,60927.0,0.1564578]
[1727814792469,0.164124,60930.0,60927.0,0.1564578]
[1727814792684,0.02571823,60932.0,60931.0,0.16412]
[1727814792896,0.164102,60938.0,60933.0,0.164113]
[1727814793109,0.164099,60939.0,60935.0,0.164108]
[1727814793319,0.164099,60939.0,60933.0,0.1564578]
[1727814793320,0.164101,60938.0,60934.0,0.164111]
[1727814793537,0.328189,60941.0,60936.0,0.164104]
[1727814793538,0.164094,60941.0,60936.0,0.164104]
[1727814793767,0.328176,60943.0,60936.0,0.164104]
[1727814793768,0.1641,60939.0,60936.0,0.00328178]
[1727814793975,0.328099,60958.0,60929.0,0.24597624]
[1727814793976,0.5255072,60954.0,60929.0,0.24597624]
[1727814794186,0.164105,60937.0,60930.0,0.3205778]
[1727814794399,0.164107,60936.0,60930.0,0.3205778]
[1727814794629,0.164109,60935.0,60930.0,0.1564578]
[1727814794865,0.328191,60941.0,60930.0,0.1564578]
[1727814795085,0.24597624,60939.0,60930.0,0.1564578]
[1727814795313,0.164108,60936.0,60930.0,0.3205778]
[1727814795582,0.24597624,60939.0,60931.0,0.164119]
[1727814795788,0.24597624,60939.0,60932.0,0.3205738]
[1727814795789,0.164103,60938.0,60932.0,0.3205738]
[1727814795997,0.164104,60937.0,60932.0,0.1564578]
[1727814796230,0.328205,60938.0,60932.0,0.1564578]
[1727814796503,0.164114,60933.0,60932.0,0.1564578]
[1727814797149,0.164117,60932.0,60931.0,0.001636]
[1727814800342,0.164106,60936.0,60931.0,0.1580938]
[1727814800575,0.37551473,60952.0,60932.0,0.1564578]
[1727814800576,0.24597624,60939.0,60932.0,0.1564578]
[1727814801102,0.0792,60953.0,60931.0,0.32987]
[1727814801103,0.1885,60960.0,60938.0,0.27953096]
[1727814801333,0.24597624,60940.0,60939.0,0.1564578]
[1727814801593,0.16408,60946.0,60940.0,0.164094]
[1727814801837,0.16408,60946.0,60941.0,0.1564578]
[1727814802090,0.328137,60951.0,60941.0,0.1564578]
[1727814802337,0.164074,60948.0,60941.0,0.1564578]
[1727814802597,0.164078,60947.0,60941.0,0.1564578]
[1727814802847,0.164078,60947.0,60934.0,0.428223]
[1727814802848,0.164104,60937.0,60931.0,0.001636]
[1727814803073,0.328185,60942.0,60939.0,0.24597624]
[1727814803309,0.328185,60942.0,60932.0,0.4846918]
[1727814803310,0.164091,60942.0,60936.0,0.164106]
[1727814803569,0.164107,60936.0,60931.0,0.101636]
[1727814803811,0.164107,60936.0,60934.0,0.1]
[1727814804030,0.24597624,60946.0,60931.0,0.001636]
[1727814804031,0.5255072,60946.0,60931.0,0.1580938]
[1727814804282,0.164107,60936.0,60931.0,0.1580938]
[1727814804524,0.24597624,60946.0,60931.0,0.1580938]
[1727814804770,0.32821,60937.0,60931.0,0.1580938]
[1727814805008,0.02124955,60945.0,60931.0,0.001636]
[1727814805009,0.164117,60932.0,60931.0,0.001636]
[1727814807307,0.164117,60932.0,60911.0,0.32327624]
[1727814807308,0.27953096,60926.0,60921.0,0.24597624]
[1727814807579,0.164144,60922.0,60921.0,0.24597624]
[1727814807819,0.328278,60924.0,60912.0,0.1564578]
[1727814807820,0.164155,60918.0,60912.0,0.1564578]
[1727814808259,0.164154,60919.0,60912.0,0.1564578]
[1727814808464,0.492451,60920.0,60914.0,0.164165]
[1727814808668,0.164156,60918.0,60915.0,0.1564578]
[1727814808884,0.328307,60919.0,60915.0,0.1564578]
[1727814809098,0.164156,60918.0,60915.0,0.1564578]
[1727814809308,0.328307,60919.0,60915.0,0.1564578]
[1727814809511,0.16416,60916.0,60915.0,0.1564578]
[1727814810168,0.328357,60910.0,60904.0,0.24597624]
[1727814810394,0.27953096,60926.0,60904.0,0.24597624]
[1727814810395,0.27953096,60921.0,60905.0,0.1564578]
[1727814810671,0.164187,60906.0,60905.0,0.1564578]
[1727814811108,0.24597624,60916.0,60901.0,0.201636]
[1727814811109,0.164198,60902.0,60901.0,0.201636]
[1727814811791,0.27953096,60912.0,60901.0,0.40213074]
[1727814811792,0.328347,60912.0,60901.0,0.40213074]
[1727814811995,0.24597624,60916.0,60902.0,0.00213475]
[1727814811996,0.164187,60907.0,60902.0,0.00213475]
[1727814812204,0.24597624,60909.0,60902.0,0.164197]
[1727814812406,0.164187,60906.0,60901.0,0.3580938]
[1727814812624,0.328348,60911.0,60902.0,0.1564578]
[1727814812835,0.164183,60908.0,60902.0,0.1564578]
[1727814813040,0.24597624,60909.0,60902.0,0.1564578]
[1727814813507,0.24597624,60909.0,60901.0,0.201636]
[1727814813508,0.164198,60902.0,60901.0,0.201636]
[1727814813715,0.57052403,60902.0,60901.0,0.201636]
[1727814813949,0.57052403,60902.0,60892.0,0.001636]
[1727814813950,0.70664459,60893.0,60892.0,0.001636]
[1727814814171,0.70664459,60893.0,60870.0,0.001636]
[1727814814172,0.287225,60892.0,60886.0,0.24597624]
[1727814814376,0.52578961,60892.0,60886.0,0.24597624]
[1727814814603,0.52578961,60892.0,60879.0,0.001636]
[1727814814604,0.287252,60882.0,60879.0,0.001636]
[1727814814803,0.287252,60882.0,60870.0,0.001636]
[1727814814804,0.36626,60879.0,60870.0,0.001636]
[1727814815041,0.102,60871.0,60870.0,0.001636]
[1727814815289,0.287308,60861.0,60860.0,0.09887624]
[1727814815503,0.287308,60861.0,60857.0,0.001634]
[1727814815504,0.166314,60859.0,60857.0,0.001634]
[1727814815709,0.166314,60859.0,60856.0,0.02]
[1727814815710,0.289319,60857.0,60856.0,0.02]
[1727814815953,0.002,60847.0,60846.0,0.12587624]
[1727814816156,0.164352,60845.0,60825.0,0.24597624]
[1727814816380,0.264362,60841.0,60825.0,0.24597624]
[1727814816636,0.264362,60841.0,60834.0,0.24597624]
[1727814816637,0.80491269,60841.0,60834.0,0.24597624]
[1727814816832,0.95726016,60841.0,60834.0,0.24597624]
[1727814817087,0.94004239,60841.0,60834.0,0.24597624]
[1727814817294,0.3976198,60841.0,60825.0,0.24597624]
[1727814817537,0.328719,60843.0,60825.0,0.24597624]
[1727814817776,0.328734,60840.0,60825.0,0.24597624]
[1727814817980,0.164373,60837.0,60830.0,0.000818]
[1727814818237,0.00410973,60839.0,60830.0,0.000818]
[1727814818238,0.24597624,60839.0,60830.0,0.000818]
[1727814818493,0.48930975,60838.0,60830.0,0.000818]
[1727814818718,0.164389,60831.0,60830.0,0.000818]
[1727814818929,0.44242259,60824.0,60823.0,0.02]
[1727814819149,0.88628839,60824.0,60823.0,0.02]
[1727814819368,0.88628839,60824.0,60808.0,0.0001]
[1727814819369,0.187449,60809.0,60808.0,0.0001]
[1727814819637,0.4244068,60809.0,60808.0,0.0001]
[1727814819890,0.5264068,60809.0,60808.0,0.0001]
[1727814820109,0.5264068,60809.0,60794.0,0.0149387]
[1727814820110,0.76947,60801.0,60800.0,0.46331143]
[1727814820333,1.40521535,60801.0,60800.0,0.46331143]
[1727814820553,1.38635039,60801.0,60800.0,0.46331143]
[1727814820989,1.38835039,60801.0,60800.0,0.26911143]
[1727814821193,1.38835039,60801.0,60794.0,0.0149387]
[1727814821194,0.292487,60795.0,60794.0,0.0149387]
[1727814821406,0.292487,60795.0,60778.0,0.24597624]
[1727814821407,0.60695259,60779.0,60778.0,0.24597624]
[1727814821625,0.76341039,60779.0,60778.0,0.24597624]
[1727814821835,0.164538,60776.0,60759.0,0.02]
[1727814822061,0.16057186,60776.0,60759.0,0.349169]
[1727814822300,0.329054,60781.0,60769.0,0.000819]
[1727814822301,0.164554,60770.0,60769.0,0.000819]
[1727814822715,0.7925497,60770.0,60769.0,0.000819]
[1727814822940,0.78643439,60770.0,60769.0,0.000819]
[1727814823394,0.78643439,60770.0,60759.0,0.02]
[1727814823395,0.164581,60760.0,60759.0,0.02]
[1727814823640,0.164581,60760.0,60731.0,0.329319]
[1727814823641,0.164671,60727.0,60710.0,0.2071]
[1727814823871,0.329208,60752.0,60709.0,0.065975]
[1727814823872,0.61,60711.0,60709.0,0.061975]
[1727814824109,0.329421,60713.0,60694.0,0.02]
[1727814824110,0.169731,60705.0,60694.0,0.02]
[1727814824371,0.329421,60713.0,60694.0,0.02]
[1727814824372,0.164673,60727.0,60704.0,0.19190793]
[1727814824600,0.5,60738.0,60704.0,0.27380793]
[1727814824601,0.005,60719.0,60704.0,0.27380793]
[1727814824825,0.005,60717.0,60704.0,0.00020793]
[1727814825052,0.005,60721.0,60705.0,0.9874999]
[1727814825313,0.9874999,60719.0,60718.0,0.164695]
[1727814825573,0.9874999,60719.0,60705.0,0.9874999]
[1727814825574,0.005,60728.0,60712.0,0.44242259]
[1727814825789,0.9874999,60719.0,60713.0,0.35639445]
[1727814825992,0.005,60725.0,60724.0,0.164679]
[1727814826200,0.9924999,60727.0,60726.0,0.164674]
[1727814826408,0.9924999,60727.0,60722.0,0.329366]
[1727814826409,0.005,60730.0,60722.0,0.329366]
[1727814826629,0.005,60727.0,60715.0,0.9874999]
[1727814826844,0.00911713,60726.0,60725.0,0.164676]
[1727814827050,0.16469445,60739.0,60721.0,0.329371]
[1727814827051,0.005,60729.0,60728.0,0.164668]
[1727814827233,0.005,60729.0,60721.0,0.329371]
[1727814827234,0.00911673,60729.0,60721.0,0.329371]
[1727814827467,0.005,60725.0,60724.0,0.164679]
[1727814827683,0.005,60725.0,60724.0,0.494038]
[1727814827924,0.9874999,60746.0,60724.0,0.494038]
[1727814827925,0.9874999,60753.0,60752.0,0.164603]
[1727814828118,0.9874999,60753.0,60740.0,0.164636]
[1727814828119,0.9874999,60741.0,60740.0,0.164636]
[1727814828329,0.002,60748.0,60728.0,0.1]
[1727814828330,0.002,60748.0,60736.0,0.329288]
[1727814828538,0.002,60746.0,60745.0,0.164622]
[1727814828772,0.004116,60747.0,60728.0,0.1]
[1727814828773,0.002,60744.0,60728.0,0.1]
[1727814828978,0.004116,60747.0,60734.0,0.41158287]
[1727814828979,0.002,60739.0,60734.0,0.41158287]
[1727814829207,0.16881094,60738.0,60727.0,0.23693187]
[1727814829414,0.002,60734.0,60727.0,0.23693187]
[1727814829627,0.002,60732.0,60729.0,0.24693187]
[1727814829846,0.16881138,60733.0,60726.0,0.329343]
[1727814830061,0.16469445,60733.0,60726.0,0.329347]
[1727814830285,0.002,60732.0,60724.0,0.0793]
[1727814830554,0.002,60728.0,60724.0,0.0693]
[1727814830761,0.16881153,60731.0,60714.0,0.24693187]
[1727814830762,0.166676,60725.0,60714.0,0.24693187]
[1727814830979,0.329364,60723.0,60714.0,0.24693187]
[1727814831193,0.0041179,60722.0,60714.0,0.24693187]
[1727814831415,0.002,60725.0,60714.0,0.24693187]
[1727814831416,0.002,60728.0,60721.0,0.23693187]
[1727814831629,0.24693187,60727.0,60721.0,0.329375]
[1727814831869,0.00611724,60736.0,60727.0,0.329341]
[1727814832084,0.24693187,60731.0,60720.0,0.329377]
[1727814832365,0.16881122,60730.0,60715.0,0.24693187]
[1727814832579,0.001,60729.0,60722.0,0.24693187]
[1727814832762,0.002,60732.0,60716.0,0.49409645]
[1727814832993,0.00411688,60731.0,60717.0,0.329394]
[1727814833214,0.002,60729.0,60724.0,0.164676]
[1727814833430,0.00411704,60728.0,60724.0,0.164677]
[1727814833661,0.00611703,60736.0,60727.0,0.16467]
[1727814833875,0.002,60732.0,60722.0,0.329367]
[1727814834105,0.00411677,60734.0,60726.0,0.329347]
[1727814834350,0.00411677,60734.0,60729.0,0.164664]
[1727814834555,0.002,60736.0,60728.0,0.164667]
[1727814834764,0.00411657,60735.0,60725.0,0.005]
[1727814835013,0.001642,60733.0,60725.0,0.005]
[1727814835670,0.002,60732.0,60725.0,0.005]
[1727814835879,0.00611704,60731.0,60725.0,0.005]
[1727814836377,0.24693187,60730.0,60725.0,0.005]
[1727814836594,0.24693187,60730.0,60710.0,0.329431]
[1727814836595,0.44242259,60726.0,60716.0,0.24693187]
[1727814836805,0.164694,60719.0,60716.0,0.24693187]
[1727814837013,0.00611778,60718.0,60716.0,0.24693187]
[1727814837224,0.00611778,60718.0,60704.0,0.00020793]
[1727814837459,0.00611778,60718.0,60714.0,0.24693187]
[1727814837666,0.002,60720.0,60713.0,0.33986704]
[1727814837877,0.002,60720.0,60714.0,0.164705]
[1727814838109,0.24693187,60719.0,60713.0,0.17515804]
[1727814838349,0.00411775,60718.0,60713.0,0.17515804]
[1727814838773,0.002,60717.0,60713.0,0.17515804]
[1727814838994,0.329372,60722.0,60713.0,0.17515804]
[1727814838995,0.00411767,60720.0,60715.0,0.164703]
[1727814839204,0.44242259,60732.0,60720.0,0.164689]